fUSD/lending_fUSD_20240825
["ID","MTS","AMOUNT","RATE_DAILY","PERIOD"]
[335893724,1724573458721,-500.0,0.0001099,2]
[335893725,1724573458730,-584.51,0.0001099,2]
[335893726,1724573458739,-500.0,0.0001099,2]
[335893727,1724573458749,-881.04,0.0001099,2]
[335893728,1724573458758,-2050.49,0.0001099,2]
[335893729,1724573458768,-529.32,0.0001099,2]
[335893730,1724573458777,-500.0,0.0001099,2]
[335893731,1724573458786,-1570.78,0.0001099,2]
[335893732,1724573458923,-500.0,0.0001099,2]
[335893733,1724573458934,-848.62,0.0001099,2]
[335893734,1724573458944,-632.69310852,0.0001099,2]
[335893735,1724573458953,-500.0,0.0001099,2]
[335893736,1724573458962,-151.0,0.0001099,2]
[335893737,1724573458972,-500.0,0.0001099,2]
[335893738,1724573458981,-978.58,0.0001099,2]
[335893739,1724573458991,-1910.97,0.0001099,2]
[335893740,1724573459000,-500.0,0.0001099,2]
[335893741,1724573459009,-500.0,0.0001099,2]
[335893742,1724573459019,-500.0,0.0001099,2]
[335893743,1724573459028,-500.0,0.0001099,2]
[335893744,1724573459037,-173.16062489,0.0001099,2]
[335893745,1724573459046,-1200.58,0.0001099,2]
[335893746,1724573459057,-4053.09,0.0001099,2]
[335893747,1724573459066,-538.94506158,0.0001099,2]
[335893748,1724573459075,-465.83736794,0.0001099,2]
[335893749,1724573459084,-561.08,0.0001099,2]
[335893750,1724573459093,-560.9,0.0001099,2]
[335893751,1724573459103,-500.0,0.0001099,2]
[335893752,1724573459112,-7579.76,0.0001099,2]
[335893753,1724573459121,-500.0,0.0001099,2]
[335893754,1724573459131,-500.0,0.0001099,2]
[335893755,1724573459140,-849.4,0.0001099,2]
[335893756,1724573459149,-500.0,0.0001099,2]
[335893757,1724573459158,-500.0,0.0001099,2]
[335893758,1724573459167,-500.0,0.0001099,2]
[335893759,1724573459177,-500.0,0.0001099,2]
[335893760,1724573459187,-1025.94,0.0001099,2]
[335893761,1724573459196,-3650.91,0.0001099,2]
[335893762,1724573459205,-500.0,0.0001099,2]
[335893763,1724573459214,-709.56,0.0001099,2]
[335893764,1724573459223,-1345.16,0.0001099,2]
[335893765,1724573459232,-163.89946262,0.0001099,2]
[335893766,1724573459242,-500.0,0.0001099,2]
[335893767,1724573459251,-650.36,0.0001099,2]
[335893768,1724573459260,-500.0,0.0001099,2]
[335893769,1724573459268,-325.22912745,0.0001099,2]
[335893770,1724573459277,-151.0,0.0001099,2]
[335893771,1724573459286,-500.0,0.0001099,2]
[335893772,1724573459295,-4035.48,0.0001099,2]
[335893773,1724573459304,-500.0,0.0001099,2]
[335893774,1724573459314,-2320.74,0.0001099,2]
[335893775,1724573459323,-500.0,0.0001099,2]
[335893776,1724573459332,-601.99,0.0001099,2]
[335893777,1724573459341,-500.0,0.0001099,2]
[335893778,1724573459350,-151.0,0.0001099,2]
[335893779,1724573459359,-863.84,0.0001099,2]
[335893780,1724573459369,-500.0,0.0001099,2]
[335893781,1724573459378,-151.0,0.0001099,2]
[335893782,1724573459387,-156.165244,0.0001099,2]
[335893783,1724573459396,-500.0,0.0001099,2]
[335893784,1724573459405,-3192.21,0.0001099,2]
[335893785,1724573459419,-3100.33,0.0001099,2]
[335893786,1724573459430,-205.283325,0.0001099,2]
[335893787,1724573459439,-1096.12,0.0001099,2]
[335893788,1724573459448,-1146.68,0.0001099,2]
[335893789,1724573459458,-156.165244,0.0001099,2]
[335893790,1724573459467,-500.0,0.0001099,2]
[335893791,1724573459476,-951.87,0.0001099,2]
[335893792,1724573459486,-500.0,0.0001099,2]
[335893793,1724573459495,-500.0,0.0001099,2]
[335893794,1724573459504,-2778.06,0.0001099,2]
[335893795,1724573459514,-500.0,0.0001099,2]
[335893796,1724573459523,-500.0,0.0001099,2]
[335893797,1724573459533,-500.0,0.0001099,2]
[335893798,1724573459542,-3456.07,0.0001099,2]
[335893799,1724573459551,-350.80926968,0.0001099,2]
[335893800,1724573459560,-342.57851775,0.0001099,2]
[335893801,1724573459569,-1161.15,0.0001099,2]
[335893802,1724573459578,-500.0,0.0001099,2]
[335893803,1724573459590,-500.0,0.0001099,2]
[335893804,1724573459601,-500.0,0.0001099,2]
[335893805,1724573459610,-4963.58,0.0001099,2]
[335893806,1724573459620,-1126.98,0.0001099,2]
[335893807,1724573459630,-903.37,0.0001099,2]
[335893808,1724573459639,-500.0,0.0001099,2]
[335893809,1724573459650,-3270.48,0.0001099,2]
[335893810,1724573459659,-500.0,0.0001099,2]
[335893811,1724573459671,-500.0,0.0001099,2]
[335893812,1724573459680,-538.31381481,0.0001099,2]
[335893813,1724573459689,-5345.47,0.0001099,2]
[335893814,1724573459699,-3540.72,0.0001099,2]
[335893815,1724573459709,-500.0,0.0001099,2]
[335893816,1724573459718,-500.0,0.0001099,2]
[335893817,1724573459727,-151.0,0.0001099,2]
[335893818,1724573459737,-7939.6,0.0001099,2]
[335893819,1724573459746,-638.06,0.0001099,2]
[335893820,1724573459756,-621.78815671,0.0001099,2]
[335893821,1724573459765,-1023.92,0.0001099,2]
[335893822,1724573459774,-631.99860208,0.0001099,2]
[335893823,1724573459783,-151.0,0.0001099,2]
[335893824,1724573459792,-500.0,0.0001099,2]
[335893825,1724573459802,-5273.31,0.0001099,2]
[335893826,1724573459811,-500.0,0.0001099,2]
[335893827,1724573459820,-500.0,0.0001099,2]
[335893828,1724573459829,-809.94,0.0001099,2]
[335893829,1724573459839,-500.0,0.0001099,2]
[335893830,1724573459847,-1312.54,0.0001099,2]
[335893831,1724573459857,-500.0,0.0001099,2]
[335893832,1724573459865,-165.74403114,0.0001099,2]
[335893833,1724573459874,-400.0,0.0001099,2]
[335893834,1724573459884,-500.0,0.0001099,2]
[335893835,1724573459893,-650.55,0.0001099,2]
[335893836,1724573459902,-500.0,0.0001099,2]
[335893837,1724573459911,-11847.99,0.0001099,2]
[335893838,1724573459921,-500.0,0.0001099,2]
[335893839,1724573459930,-500.0,0.0001099,2]
[335893840,1724573459939,-524.0,0.00010991,2]
[335893841,1724573459949,-745.42,0.00010991,2]
[335893842,1724573459957,-500.0,0.00010991,2]
[335893843,1724573459967,-500.0,0.00010991,2]
[335893844,1724573459976,-500.0,0.00010991,2]
[335893845,1724573459985,-500.0,0.00010991,2]
[335893846,1724573459994,-500.0,0.00010991,2]
[335893847,1724573460003,-500.0,0.00010991,2]
[335893848,1724573460013,-500.0,0.00010991,2]
[335893849,1724573460022,-500.0,0.00010991,2]
[335893850,1724573460032,-500.0,0.00010991,2]
[335893851,1724573460043,-150.10375179,0.00010991,2]
[335893852,1724573460052,-500.0,0.00010991,2]
[335893853,1724573460062,-500.0,0.00010991,2]
[335893854,1724573460072,-500.0,0.00010991,2]
[335893855,1724573460082,-500.0,0.00010991,2]
[335893856,1724573460091,-500.0,0.00010991,2]
[335893857,1724573460100,-500.0,0.00010991,2]
[335893858,1724573460110,-151.0,0.00010991,2]
[335893859,1724573460119,-151.0,0.00010991,2]
[335893860,1724573460128,-500.0,0.00010991,2]
[335893861,1724573460138,-500.0,0.00010991,2]
[335893862,1724573460148,-433.08113097,0.00010991,2]
[335893863,1724573460159,-586.18,0.00010991,2]
[335893864,1724573460171,-251.62029714,0.00010991,2]
[335893865,1724573460180,-500.0,0.00010991,2]
[335893866,1724573460189,-500.0,0.00010991,2]
[335893867,1724573460198,-500.0,0.00010991,2]
[335893868,1724573460207,-337.05153474,0.00010991,2]
[335893869,1724573460216,-500.0,0.00010991,2]
[335893870,1724573460225,-500.0,0.00010991,2]
[335893871,1724573460234,-500.0,0.00010991,2]
[335893872,1724573460243,-500.0,0.00010991,2]
[335893873,1724573460253,-725.65,0.00010991,2]
[335893874,1724573460263,-500.0,0.00010991,2]
[335893875,1724573460272,-192.386458,0.00010991,2]
[335893876,1724573460281,-621.76,0.00010991,2]
[335893877,1724573460290,-500.0,0.00010991,2]
[335893878,1724573460300,-500.0,0.00010991,2]
[335893879,1724573460309,-557.51,0.00010991,2]
[335893880,1724573460318,-500.0,0.00010991,2]
[335893881,1724573460329,-1295.8,0.00010991,2]
[335893882,1724573460338,-500.0,0.00010991,2]
[335893883,1724573460348,-500.0,0.00010991,2]
[335893884,1724573460358,-1077.64,0.00010991,2]
[335893885,1724573460367,-500.0,0.00010991,2]
[335893886,1724573460377,-500.0,0.00010991,2]
[335893887,1724573460387,-500.0,0.00010991,2]
[335893888,1724573460397,-500.0,0.00010991,2]
[335893889,1724573460407,-566.8,0.00010991,2]
[335893890,1724573460418,-500.0,0.00010991,2]
[335893891,1724573460427,-537.43829805,0.00010991,2]
[335893892,1724573460438,-500.0,0.00010991,2]
[335893893,1724573460450,-500.0,0.00010991,2]
[335893894,1724573460461,-500.0,0.00010991,2]
[335893895,1724573460470,-605.55,0.00010991,2]
[335893896,1724573460479,-500.0,0.00010991,2]
[335893897,1724573460489,-500.0,0.00010991,2]
[335893898,1724573460498,-500.0,0.00010991,2]
[335893899,1724573460507,-500.0,0.00010991,2]
[335893900,1724573460517,-500.0,0.00010991,2]
[335893901,1724573460526,-500.0,0.00010991,2]
[335893902,1724573460535,-949.79,0.00010991,2]
[335893903,1724573460544,-500.0,0.00010991,2]
[335893904,1724573460553,-500.0,0.00010991,2]
[335893905,1724573460561,-500.0,0.00010991,2]
[335893906,1724573460570,-500.0,0.00010991,2]
[335893907,1724573460579,-500.0,0.00010991,2]
[335893908,1724573460588,-500.0,0.00010991,2]
[335893909,1724573460598,-623.11,0.00010991,2]
[335893910,1724573460611,-500.0,0.00010991,2]
[335893911,1724573460620,-500.0,0.00010991,2]
[335893912,1724573460629,-500.0,0.00010991,2]
[335893913,1724573460638,-500.0,0.00010991,2]
[335893914,1724573460649,-500.0,0.00010991,2]
[335893915,1724573460658,-500.0,0.00010991,2]
[335893916,1724573460667,-500.0,0.00010991,2]
[335893917,1724573460677,-286.47457307,0.00010991,2]
[335893918,1724573460687,-500.0,0.00010991,2]
[335893919,1724573460696,-500.0,0.00010991,2]
[335893920,1724573460705,-604.15,0.00010991,2]
[335893921,1724573460714,-500.0,0.00010991,2]
[335893922,1724573460723,-190.831073,0.00010991,2]
[335893923,1724573460732,-500.0,0.00010991,2]
[335893924,1724573460742,-190.831073,0.00010991,2]
[335893925,1724573460751,-500.0,0.00010991,2]
[335893926,1724573460759,-151.0,0.00010991,2]
[335893927,1724573460768,-500.0,0.00010991,2]
[335893928,1724573460777,-500.0,0.00010991,2]
[335893929,1724573460786,-500.0,0.00010991,2]
[335893930,1724573460795,-179.20829984,0.00010991,2]
[335893931,1724573460804,-500.0,0.00010991,2]
[335893932,1724573460813,-500.0,0.00010991,2]
[335893933,1724573460823,-563.35,0.00010991,2]
[335893934,1724573460832,-500.0,0.00010991,2]
[335893935,1724573460841,-500.0,0.00010991,2]
[335893936,1724573460851,-500.0,0.00010991,2]
[335893937,1724573460860,-500.0,0.00010991,2]
[335893938,1724573460869,-500.0,0.00010991,2]
[335893939,1724573460878,-599.7,0.00010991,2]
[335893940,1724573460887,-225.39,0.00010991,2]
[335893941,1724573460896,-547.34998151,0.00010991,2]
[335893942,1724573460905,-500.0,0.00010991,2]
[335893943,1724573460914,-500.0,0.00010991,2]
[335893944,1724573460923,-500.0,0.00010991,2]
[335893945,1724573460933,-313.14478655,0.00010991,2]
[335893946,1724573460942,-500.0,0.00010991,2]
[335893947,1724573460951,-500.0,0.00010991,2]
[335893948,1724573460960,-592.58225733,0.00010991,2]
[335893949,1724573460969,-500.0,0.00010991,2]
[335893950,1724573460978,-500.0,0.00010991,2]
[335893951,1724573460987,-554.75,0.00010991,2]
[335893952,1724573460996,-500.0,0.00010991,2]
[335893953,1724573461006,-500.0,0.00010991,2]
[335893954,1724573461014,-228.44612,0.00010991,2]
[335893955,1724573461023,-577.46,0.00010991,2]
[335893956,1724573461032,-500.0,0.00010991,2]
[335893957,1724573461041,-826.84,0.00010991,2]
[335893958,1724573461050,-500.0,0.00010991,2]
[335893959,1724573461059,-848.62,0.00010991,2]
[335893960,1724573461068,-151.0,0.00010991,2]
[335893961,1724573461078,-833.23,0.00010991,2]
[335893962,1724573461087,-1910.97,0.00010991,2]
[335893963,1724573461096,-500.0,0.00010991,2]
[335893964,1724573461105,-500.0,0.00010991,2]
[335893965,1724573461114,-561.08,0.00010991,2]
[335893966,1724573461123,-500.0,0.00010991,2]
[335893967,1724573461131,-1375.29,0.00010991,2]
[335893968,1724573461140,-500.0,0.00010991,2]
[335893969,1724573461149,-500.0,0.00010991,2]
[335893970,1724573461158,-849.4,0.00010991,2]
[335893971,1724573461169,-500.0,0.00010991,2]
[335893972,1724573461178,-954.42,0.00010991,2]
[335893973,1724573461187,-788.65,0.00010991,2]
[335893974,1724573461196,-709.56,0.00010991,2]
[335893975,1724573461205,-443.36142112,0.00010991,2]
[335893976,1724573461214,-151.0,0.00010991,2]
[335893977,1724573461223,-2320.74,0.00010991,2]
[335893978,1724573461232,-711.78,0.00010991,2]
[335893979,1724573461241,-396.44443794,0.00010991,2]
[335893980,1724573461250,-863.84,0.00010991,2]
[335893981,1724573461259,-151.0,0.00010991,2]
[335893982,1724573461269,-500.0,0.00010991,2]
[335893983,1724573461277,-156.165244,0.00010991,2]
[335893984,1724573461286,-214.17990522,0.00010991,2]
[335893985,1724573461295,-500.0,0.00010991,2]
[335893986,1724573461304,-156.165244,0.00010991,2]
[335893987,1724573461313,-234.94099564,0.00010991,2]
[335893988,1724573461322,-500.0,0.00010991,2]
[335893989,1724573461331,-951.87,0.00010991,2]
[335893990,1724573461340,-1161.15,0.00010991,2]
[335893991,1724573461349,-500.0,0.00010991,2]
[335893992,1724573461358,-632.89,0.00010991,2]
[335893993,1724573461368,-1126.98,0.00010991,2]
[335893994,1724573461501,-500.0,0.00010991,2]
[335893995,1724573461510,-500.0,0.00010991,2]
[335893996,1724573461519,-151.0,0.00010991,2]
[335893997,1724573461528,-869.51,0.00010991,2]
[335893998,1724573461537,-1023.92,0.00010991,2]
[335893999,1724573461548,-267.226685,0.00010991,2]
[335894000,1724573461558,-500.0,0.00010991,2]
[335894001,1724573461569,-809.94,0.00010991,2]
[335894002,1724573461579,-500.0,0.00010991,2]
[335894003,1724573461588,-500.0,0.00010991,2]
[335894004,1724573461598,-650.55,0.00010991,2]
[335894005,1724573461612,-500.0,0.00010991,2]
[335894006,1724573461622,-500.0,0.00010991,2]
[335894007,1724573461632,-151.0,0.00010992,2]
[335894008,1724573461643,-154.306823,0.00010992,2]
[335894009,1724573461653,-154.126259,0.00010992,2]
[335894010,1724573461662,-151.0,0.00010992,2]
[335894011,1724573461672,-151.0,0.00010992,2]
[335894012,1724573461683,-153.865711,0.00010992,2]
[335894013,1724573461693,-153.865711,0.00010992,2]
[335894014,1724573461703,-151.0,0.00010992,2]
[335894015,1724573461713,-151.0,0.00010992,2]
[335894016,1724573461723,-151.0,0.00010992,2]
[335894017,1724573461732,-266.613066,0.00010992,2]
[335894018,1724573461742,-266.613066,0.00010992,2]
[335894019,1724573461751,-151.0,0.00010992,2]
[335894020,1724573461760,-500.0,0.00010992,2]
[335894021,1724573461770,-3130.07,0.00010992,2]
[335894022,1724573461779,-500.0,0.00010992,2]
[335894023,1724573461788,-500.0,0.00010992,2]
[335894024,1724573461797,-500.0,0.00010992,2]
[335894025,1724573461806,-905.97,0.00010992,2]
[335894026,1724573461815,-1143.85,0.00010992,2]
[335894027,1724573461824,-151.0,0.00010992,2]
[335894028,1724573461833,-1824.36,0.00010992,2]
[335894029,1724573461842,-247.85444336,0.00010992,2]
[335894030,1724573461852,-500.0,0.00010992,2]
[335894031,1724573461861,-1841.05,0.00010992,2]
[335894032,1724573461870,-1525.6,0.00010992,2]
[335894033,1724573461879,-223.858382,0.00010992,2]
[335894034,1724573461889,-223.858382,0.00010992,2]
[335894035,1724573461898,-1732.82,0.00010992,2]
[335894036,1724573461909,-500.0,0.00010992,2]
[335894037,1724573461919,-921.53,0.00010992,2]
[335894038,1724573461928,-678.41,0.00010992,2]
[335894039,1724573461938,-191.795712,0.00010992,2]
[335894040,1724573461948,-151.0,0.00010992,2]
[335894041,1724573461958,-500.0,0.00010992,2]
[335894042,1724573461970,-500.0,0.00010992,2]
[335894043,1724573461980,-1213.87,0.00010992,2]
[335894044,1724573461989,-500.0,0.00010992,2]
[335894045,1724573461998,-621.76,0.00010992,2]
[335894046,1724573462007,-500.0,0.00010992,2]
[335894047,1724573462017,-500.0,0.00010992,2]
[335894048,1724573462026,-500.0,0.00010992,2]
[335894049,1724573462035,-500.0,0.00010992,2]
[335894050,1724573462045,-1191.68,0.00010992,2]
[335894051,1724573462056,-1295.8,0.00010992,2]
[335894052,1724573462067,-500.0,0.00010992,2]
[335894053,1724573462078,-500.0,0.00010992,2]
[335894054,1724573462087,-151.0,0.00010992,2]
[335894055,1724573462096,-500.0,0.00010992,2]
[335894056,1724573462107,-536.13777756,0.00010992,2]
[335894057,1724573462116,-500.0,0.00010992,2]
[335894058,1724573462125,-500.0,0.00010992,2]
[335894059,1724573462134,-1534.53,0.00010992,2]
[335894060,1724573462146,-151.0,0.00010992,2]
[335894061,1724573462156,-500.0,0.00010992,2]
[335894062,1724573462167,-509.58,0.00010992,2]
[335894063,1724573462176,-500.0,0.00010992,2]
[335894064,1724573462185,-748.03,0.00010992,2]
[335894065,1724573462195,-1077.64,0.00010992,2]
[335894066,1724573462204,-152.982179,0.00010992,2]
[335894067,1724573462212,-500.0,0.00010992,2]
[335894068,1724573462222,-500.0,0.00010992,2]
[335894069,1724573462231,-500.0,0.00010992,2]
[335894070,1724573462240,-500.0,0.00010992,2]
[335894071,1724573462250,-500.0,0.00010992,2]
[335894072,1724573462259,-500.0,0.00010992,2]
[335894073,1724573462268,-500.0,0.00010992,2]
[335894074,1724573462277,-500.0,0.00010992,2]
[335894075,1724573462287,-264.364301,0.00010992,2]
[335894076,1724573462296,-605.55,0.00010992,2]
[335894077,1724573462305,-500.0,0.00010992,2]
[335894078,1724573462314,-264.364301,0.00010992,2]
[335894079,1724573462324,-546.58,0.00010992,2]
[335894080,1724573462332,-500.0,0.00010992,2]
[335894081,1724573462341,-500.0,0.00010992,2]
[335894082,1724573462351,-500.0,0.00010992,2]
[335894083,1724573462360,-500.0,0.00010992,2]
[335894084,1724573462370,-631.93651352,0.00010992,2]
[335894085,1724573462379,-500.0,0.00010992,2]
[335894086,1724573462388,-500.0,0.00010992,2]
[335894087,1724573462398,-500.0,0.00010992,2]
[335894088,1724573462408,-500.0,0.00010992,2]
[335894089,1724573462418,-500.0,0.00010992,2]
[335894090,1724573462428,-500.0,0.00010992,2]
[335894091,1724573462438,-500.0,0.00010992,2]
[335894092,1724573462448,-500.0,0.00010992,2]
[335894093,1724573462457,-500.0,0.00010992,2]
[335894094,1724573462466,-151.0,0.00010992,2]
[335894095,1724573462475,-151.0,0.00010992,2]
[335894096,1724573462485,-500.0,0.00010992,2]
[335894097,1724573462495,-262.886908,0.00010992,2]
[335894098,1724573462504,-151.520946,0.00010992,2]
[335894099,1724573462513,-500.0,0.00010992,2]
[335894100,1724573462524,-500.0,0.00010992,2]
[335894101,1724573462534,-151.0,0.00010992,2]
[335894102,1724573462543,-500.0,0.00010992,2]
[335894103,1724573462552,-184.79829,0.00010992,2]
[335894104,1724573462561,-623.11,0.00010992,2]
[335894105,1724573462570,-500.0,0.00010992,2]
[335894106,1724573462581,-500.0,0.00010992,2]
[335894107,1724573462590,-500.0,0.00010992,2]
[335894108,1724573462600,-500.0,0.00010992,2]
[335894109,1724573462615,-500.0,0.00010992,2]
[335894110,1724573462624,-151.0,0.00010992,2]
[335894111,1724573462634,-500.0,0.00010992,2]
[335894112,1724573462644,-500.0,0.00010992,2]
[335894113,1724573462655,-190.831073,0.00010992,2]
[335894114,1724573462666,-190.831073,0.00010992,2]
[335894115,1724573462684,-151.0,0.00010992,2]
[335894116,1724573462693,-151.0,0.00010992,2]
[335894117,1724573462702,-500.0,0.00010992,2]
[335894118,1724573462711,-500.0,0.00010992,2]
[335894119,1724573462722,-151.0,0.00010992,2]
[335894120,1724573462731,-193.96836956,0.00010992,2]
[335894121,1724573462740,-151.0,0.00010992,2]
[335894122,1724573462749,-585.29975131,0.00010992,2]
[335894123,1724573462759,-500.0,0.00010992,2]
[335894124,1724573462768,-500.0,0.00010992,2]
[335894125,1724573462778,-2262.16,0.00010992,2]
[335894126,1724573462792,-549.5,0.00010992,2]
[335894127,1724573462805,-725.8,0.00010992,2]
[335894128,1724573462822,-500.0,0.00010992,2]
[335894129,1724573462834,-500.0,0.00010992,2]
[335894130,1724573462843,-6793.26,0.00010992,2]
[335894131,1724573462853,-500.0,0.00010992,2]
[335894132,1724573462863,-500.0,0.00010992,2]
[335894133,1724573462873,-500.0,0.00010992,2]
[335894134,1724573462883,-846.75,0.00010992,2]
[335894135,1724573462892,-500.0,0.00010992,2]
[335894136,1724573462902,-1527.82,0.00010992,2]
[335894137,1724573462912,-500.0,0.00010992,2]
[335894138,1724573462921,-1315.44,0.00010992,2]
[335894139,1724573462931,-500.0,0.00010992,2]
[335894140,1724573462940,-500.0,0.00010992,2]
[335894141,1724573462950,-500.0,0.00010992,2]
[335894142,1724573462960,-192.056815,0.00010992,2]
[335894143,1724573462970,-1126.45,0.00010992,2]
[335894144,1724573462979,-500.0,0.00010992,2]
[335894145,1724573462989,-348.42522,0.00010992,2]
[335894146,1724573462998,-348.42522,0.00010992,2]
[335894147,1724573463008,-192.056815,0.00010992,2]
[335894148,1724573463017,-348.42522,0.00010992,2]
[335894149,1724573463026,-348.42522,0.00010992,2]
[335894150,1724573463035,-1321.25,0.00010992,2]
[335894151,1724573463044,-680.48,0.00010992,2]
[335894152,1724573463053,-838.53,0.00010992,2]
[335894153,1724573463062,-151.0,0.00010992,2]
[335894154,1724573463072,-272.087853,0.00010992,2]
[335894155,1724573463081,-1276.9,0.00010992,2]
[335894156,1724573463091,-4610.99,0.00010992,2]
[335894157,1724573463100,-549.34,0.00010992,2]
[335894158,1724573463109,-2112.53,0.00010992,2]
[335894159,1724573463118,-150.102167,0.00010992,2]
[335894160,1724573463128,-151.0,0.00010992,2]
[335894161,1724573463137,-500.0,0.00010992,2]
[335894162,1724573463146,-217.518067,0.00010992,2]
[335894163,1724573463155,-500.0,0.00010992,2]
[335894164,1724573463168,-4083.83,0.00010992,2]
[335894165,1724573463177,-2551.413537,0.00010992,2]
[335894166,1724573463186,-500.0,0.00010992,2]
[335894167,1724573463195,-554.75,0.00010992,2]
[335894168,1724573463204,-1942.65,0.00010992,2]
[335894169,1724573463213,-1317.96,0.00010992,2]
[335894170,1724573463222,-1556.521208,0.00010992,2]
[335894171,1724573463230,-500.0,0.00010992,2]
[335894172,1724573463239,-1752.860794,0.00010992,2]
[335894173,1724573463248,-742.32,0.00010992,2]
[335894174,1724573463257,-500.0,0.00010992,2]
[335894175,1724573463267,-7844.32,0.00010992,2]
[335894176,1724573463276,-1084.51,0.00010992,2]
[335894177,1724573463285,-500.0,0.00010992,2]
[335894178,1724573463294,-2626.99,0.00010992,2]
[335894179,1724573463303,-577.46,0.00010992,2]
[335894180,1724573463313,-584.51,0.00010992,2]
[335894181,1724573463323,-500.0,0.00010992,2]
[335894182,1724573463333,-881.04,0.00010992,2]
[335894183,1724573463342,-826.84,0.00010992,2]
[335894184,1724573463351,-2050.49,0.00010992,2]
[335894185,1724573463361,-529.32,0.00010992,2]
[335894186,1724573463371,-500.0,0.00010992,2]
[335894187,1724573463380,-1570.78,0.00010992,2]
[335894188,1724573463389,-500.0,0.00010992,2]
[335894189,1724573463398,-500.0,0.00010992,2]
[335894190,1724573463407,-848.62,0.00010992,2]
[335894191,1724573463417,-500.0,0.00010992,2]
[335894192,1724573463426,-151.0,0.00010992,2]
[335894193,1724573463435,-500.0,0.00010992,2]
[335894194,1724573463444,-978.58,0.00010992,2]
[335894195,1724573463453,-833.23,0.00010992,2]
[335894196,1724573463463,-1910.97,0.00010992,2]
[335894197,1724573463472,-500.0,0.00010992,2]
[335894198,1724573463481,-240.31892,0.00010992,2]
[335894199,1724573463492,-500.0,0.00010992,2]
[335894200,1724573463501,-500.0,0.00010992,2]
[335894201,1724573463511,-1200.58,0.00010992,2]
[335894202,1724573463520,-4053.09,0.00010992,2]
[335894203,1724573463529,-500.0,0.00010992,2]
[335894204,1724573463538,-500.0,0.00010992,2]
[335894205,1724573463547,-561.08,0.00010992,2]
[335894206,1724573463556,-500.0,0.00010992,2]
[335894207,1724573463565,-560.9,0.00010992,2]
[335894208,1724573463575,-500.0,0.00010992,2]
[335894209,1724573463584,-7579.76,0.00010992,2]
[335894210,1724573463594,-500.0,0.00010992,2]
[335894211,1724573463604,-1375.29,0.00010992,2]
[335894212,1724573463616,-1375.29,0.00010992,2]
[335894213,1724573463625,-500.0,0.00010992,2]
[335894214,1724573463634,-849.4,0.00010992,2]
[335894215,1724573463643,-954.42,0.00010992,2]
[335894216,1724573463654,-500.0,0.00010992,2]
[335894217,1724573463663,-500.0,0.00010992,2]
[335894218,1724573463673,-371.60097392,0.00010992,2]
[335894219,1724573463682,-500.0,0.00010992,2]
[335894220,1724573463694,-788.65,0.00010992,2]
[335894221,1724573463703,-1025.94,0.00010992,2]
[335894222,1724573463712,-788.65,0.00010992,2]
[335894223,1724573463721,-3650.91,0.00010992,2]